Workbook

Sheet Sheet1
A1: Starting Date | B1: 2024-01-01
A3: Ending date of payroll | B3: Days to Date | C3: Item | D3: YTD Amount | E3: Daily | F3: Weekly | G3: Bi-Weekly | H3: Monthly | I3: Annually
A4: 2024-05-26 | B4: =IF(A4="","",_xlfn.DAYS(A4,B1)) -> 146 | C4: Gross Pay | D4: 11252 | E4: =IF($D4="","",D4/$B$4) -> 77.06849315 | F4: =IF($D4="","",E4*7) -> 539.4794521 | G4: =IF($D4="","",E4*14) -> 1078.958904 | H4: =IF($D4="","",(E4*365)/12) -> 2344.166667 | I4: =IF($D4="","",E4*365) -> 28130
C5: W-4 WH | D5: 457.28 | E5: =IF($D5="","",D5/$B$4) -> 3.132054795 | F5: =IF($D5="","",E5*7) -> 21.92438356 | G5: =IF($D5="","",E5*14) -> 43.84876712 | H5: =IF($D5="","",(E5*365)/12) -> 95.26666667 | I5: =IF($D5="","",E5*365) -> 1143.2
C6: State W/H | D6: 377 | E6: 2.582191781 | F6: 18.07534247 | G6: 36.15068493 | H6: 78.54166667 | I6: 942.5
C7: Local W/H | D7: 49.1 | E7: 0.3363013699 | F7: 2.354109589 | G7: 4.708219178 | H7: 10.22916667 | I7: 122.75
C8: Medical W/H | D8: 308 | E8: 2.109589041 | F8: 14.76712329 | G8: 29.53424658 | H8: 64.16666667 | I8: 770
C9: Retirement | E9: =IF($D9="","",D9/$B$4) ->  | F9: =IF($D9="","",E9*7) ->  | G9: =IF($D9="","",E9*14) ->  | H9: =IF($D9="","",(E9*365)/12) ->  | I9: =IF($D9="","",E9*365) -> 
C10: Denver | D10: 28.75 | E10: 0.1969178082 | F10: 1.378424658 | G10: 2.756849315 | H10: 5.989583333 | I10: 71.875
